[Event "*** Titled Tuesday Blitz"]
[Site "Chess.com"]
[Date "2021.03.02"]
[Round "2"]
[White "szachuspl"]
[Black "frederiksvane"]
[Result "1/2-1/2"]
[WhiteElo "2485"]
[BlackElo "2678"]
[TimeControl "180+1"]
[EndTime "10:18:01 PST"]
[Termination "Game drawn by repetition"]

1. d4 {[%clk 0:03:00.9]} 1... Nf6 {[%clk 0:02:57.3]} 2. c4 {[%clk 0:03:00.8]}
2... e6 {[%clk 0:02:57.6]} 3. Nf3 {[%clk 0:03:00.6]} 3... d5 {[%clk 0:02:57.3]}
4. Nc3 {[%clk 0:03:00.4]} 4... h6 {[%clk 0:02:55.8]} 5. Bf4 {[%clk 0:02:56.6]}
5... Bd6 {[%clk 0:02:55.8]} 6. Bxd6 {[%clk 0:02:54.6]} 6... Qxd6 {[%clk
0:02:56.2]} 7. e3 {[%clk 0:02:55]} 7... O-O {[%clk 0:02:55.7]} 8. Rc1 {[%clk
0:02:54.3]} 8... b6 {[%clk 0:02:37.4]} 9. cxd5 {[%clk 0:02:53.9]} 9... Nxd5
{[%clk 0:02:36.5]} 10. Be2 {[%clk 0:02:47.2]} 10... Bb7 {[%clk 0:02:31.2]} 11.
O-O {[%clk 0:02:47]} 11... Nxc3 {[%clk 0:02:10.6]} 12. Rxc3 {[%clk 0:02:46.7]}
12... Nd7 {[%clk 0:02:10]} 13. Qc2 {[%clk 0:02:44.6]} 13... c5 {[%clk
0:02:06.2]} 14. Rd1 {[%clk 0:02:43.9]} 14... Qe7 {[%clk 0:01:30]} 15. dxc5
{[%clk 0:02:40.5]} 15... Nxc5 {[%clk 0:01:01.2]} 16. b4 {[%clk 0:02:40.2]} 16...
Na6 {[%clk 0:00:54.1]} 17. a3 {[%clk 0:02:30.2]} 17... Rfc8 {[%clk 0:00:51]} 18.
Ne5 {[%clk 0:02:19.3]} 18... Rxc3 {[%clk 0:00:49.5]} 19. Qxc3 {[%clk 0:02:19.3]}
19... Rd8 {[%clk 0:00:49.4]} 20. Rd4 {[%clk 0:01:55.4]} 20... Nb8 {[%clk
0:00:42.4]} 21. f3 {[%clk 0:01:39.9]} 21... Rxd4 {[%clk 0:00:35.3]} 22. exd4
{[%clk 0:01:37.8]} 22... Qd8 {[%clk 0:00:29.2]} 23. Kf2 {[%clk 0:01:29.1]} 23...
Qc8 {[%clk 0:00:20.9]} 24. Qxc8+ {[%clk 0:01:22.2]} 24... Bxc8 {[%clk
0:00:21.8]} 25. Bb5 {[%clk 0:01:22.6]} 25... Kf8 {[%clk 0:00:19.2]} 26. Ke3
{[%clk 0:01:22.2]} 26... Ke7 {[%clk 0:00:18.4]} 27. h4 {[%clk 0:01:21.2]} 27...
Bb7 {[%clk 0:00:18.6]} 28. f4 {[%clk 0:01:16.2]} 28... Bxg2 {[%clk 0:00:17.4]}
29. Ba4 {[%clk 0:01:02.7]} 29... Bb7 {[%clk 0:00:17.2]} 30. Bb5 {[%clk
0:01:02.8]} 30... g6 {[%clk 0:00:16]} 31. Ba4 {[%clk 0:00:58.2]} 31... Ba6
{[%clk 0:00:12]} 32. Ke4 {[%clk 0:00:55.4]} 32... Bc8 {[%clk 0:00:11.6]} 33. Ke3
{[%clk 0:00:51.9]} 33... Bb7 {[%clk 0:00:11.1]} 34. Bb5 {[%clk 0:00:51.3]} 34...
a6 {[%clk 0:00:11.2]} 35. Ba4 {[%clk 0:00:50.6]} 35... Bd5 {[%clk 0:00:08.3]}
36. Kd3 {[%clk 0:00:46.6]} 36... b5 {[%clk 0:00:08.6]} 37. Bd1 {[%clk
0:00:45.9]} 37... Nd7 {[%clk 0:00:09.3]} 38. Ke3 {[%clk 0:00:42.1]} 38... Nxe5
{[%clk 0:00:09]} 39. dxe5 {[%clk 0:00:41.8]} 39... f6 {[%clk 0:00:07.9]} 40. Kd4
{[%clk 0:00:41.8]} 40... fxe5+ {[%clk 0:00:07.9]} 41. Kxe5 {[%clk 0:00:42.3]}
41... Kf7 {[%clk 0:00:06.9]} 42. Bg4 {[%clk 0:00:40.7]} 42... Ke7 {[%clk
0:00:06.8]} 43. Be2 {[%clk 0:00:39.9]} 43... Kf7 {[%clk 0:00:07.1]} 44. Bd3
{[%clk 0:00:40.4]} 44... Bb7 {[%clk 0:00:05.1]} 45. Bc2 {[%clk 0:00:38.5]} 45...
Bd5 {[%clk 0:00:05.3]} 46. Bd3 {[%clk 0:00:36.7]} 46... Bc4 {[%clk 0:00:05.7]}
47. Be4 {[%clk 0:00:36.2]} 47... Bd5 {[%clk 0:00:04.7]} 48. Bd3 {[%clk
0:00:29.2]} 1/2-1/2

[Event "*** Titled Tuesday Blitz"]
[Site "Chess.com"]
[Date "2021.03.02"]
[Round "2"]
[White "KetiGrant"]
[Black "Vugar_Manafov"]
[Result "1-0"]
[WhiteElo "2351"]
[BlackElo "2615"]
[TimeControl "180+1"]
[EndTime "10:18:01 PST"]
[Termination "KetiGrant won by checkmate"]

1. e4 {[%clk 0:03:00.9]} 1... Nf6 {[%clk 0:02:59.4]} 2. e5 {[%clk 0:02:59.9]}
2... Nd5 {[%clk 0:02:58.8]} 3. d4 {[%clk 0:03:00.5]} 3... d6 {[%clk 0:02:58.9]}
4. c4 {[%clk 0:03:00.5]} 4... Nb6 {[%clk 0:02:59.2]} 5. exd6 {[%clk 0:03:00.5]}
5... exd6 {[%clk 0:02:59]} 6. Be3 {[%clk 0:02:59.3]} 6... Be7 {[%clk 0:02:59.4]}
7. Nc3 {[%clk 0:02:57]} 7... O-O {[%clk 0:02:59.5]} 8. Bd3 {[%clk 0:02:53.3]}
8... Bf6 {[%clk 0:02:59.7]} 9. Nge2 {[%clk 0:02:51.9]} 9... Nc6 {[%clk
0:02:58.8]} 10. O-O {[%clk 0:02:48.8]} 10... Re8 {[%clk 0:02:57.8]} 11. b3
{[%clk 0:02:39.6]} 11... Bg4 {[%clk 0:02:55.4]} 12. Qd2 {[%clk 0:02:36.6]} 12...
d5 {[%clk 0:02:50]} 13. c5 {[%clk 0:02:35.9]} 13... Nc8 {[%clk 0:02:49.9]} 14.
Ng3 {[%clk 0:02:34.1]} 14... N8e7 {[%clk 0:02:44.7]} 15. h3 {[%clk 0:02:28.8]}
15... Be6 {[%clk 0:02:44.9]} 16. Nce2 {[%clk 0:02:26.8]} 16... Ng6 {[%clk
0:02:26.6]} 17. b4 {[%clk 0:02:21.9]} 17... Qd7 {[%clk 0:01:58.5]} 18. b5 {[%clk
0:02:14.8]} 18... Nce7 {[%clk 0:01:53.3]} 19. Nh5 {[%clk 0:02:13.8]} 19... Bh4
{[%clk 0:01:52.3]} 20. Nhf4 {[%clk 0:02:05.3]} 20... Nxf4 {[%clk 0:01:49.7]} 21.
Nxf4 {[%clk 0:02:06.2]} 21... Bf5 {[%clk 0:01:50]} 22. Rfe1 {[%clk 0:01:54.3]}
22... c6 {[%clk 0:01:41.7]} 23. a4 {[%clk 0:01:48.2]} 23... Bxd3 {[%clk
0:01:34.3]} 24. Qxd3 {[%clk 0:01:48]} 24... Nf5 {[%clk 0:01:32.8]} 25. Bd2
{[%clk 0:01:35.8]} 25... Bf6 {[%clk 0:01:30.8]} 26. Bc3 {[%clk 0:01:28.7]} 26...
g6 {[%clk 0:01:20.4]} 27. Rab1 {[%clk 0:01:18.2]} 27... Rxe1+ {[%clk 0:01:17.8]}
28. Rxe1 {[%clk 0:01:17.2]} 28... Re8 {[%clk 0:01:18.7]} 29. Rxe8+ {[%clk
0:01:11]} 29... Qxe8 {[%clk 0:01:16.4]} 30. a5 {[%clk 0:01:04.2]} 30... Bg5
{[%clk 0:01:04.2]} 31. Ne2 {[%clk 0:00:35.7]} 31... cxb5 {[%clk 0:01:03]} 32.
Qf3 {[%clk 0:00:33.3]} 32... Qe6 {[%clk 0:00:55.6]} 33. Nf4 {[%clk 0:00:30.1]}
33... Bxf4 {[%clk 0:00:52.6]} 34. Qxf4 {[%clk 0:00:31]} 34... Qc8 {[%clk
0:00:49.2]} 35. Qe5 {[%clk 0:00:29.2]} 35... Qd8 {[%clk 0:00:45.7]} 36. Bd2
{[%clk 0:00:20.6]} 36... a6 {[%clk 0:00:37.8]} 37. Kf1 {[%clk 0:00:19.1]} 37...
Qe7 {[%clk 0:00:32.5]} 38. Qb8+ {[%clk 0:00:08.9]} 38... Kg7 {[%clk 0:00:33.1]}
39. Bf4 {[%clk 0:00:07.8]} 39... f6 {[%clk 0:00:33.2]} 40. g4 {[%clk 0:00:04.5]}
40... Nxd4 {[%clk 0:00:32.4]} 41. Bd6 {[%clk 0:00:04.1]} 41... Qd7 {[%clk
0:00:25.6]} 42. Qf8# {[%clk 0:00:02.3]} 1-0

[Event "*** Titled Tuesday Blitz"]
[Site "Chess.com"]
[Date "2021.03.02"]
[Round "2"]
[White "heyjohnnypark"]
[Black "BabyBoss31"]
[Result "0-1"]
[WhiteElo "2600"]
[BlackElo "2337"]
[TimeControl "180+1"]
[EndTime "10:18:01 PST"]
[Termination "BabyBoss31 won by resignation"]

1. d4 {[%clk 0:03:00.9]} 1... d5 {[%clk 0:02:59.5]} 2. Nf3 {[%clk 0:03:01.2]}
2... c6 {[%clk 0:02:57]} 3. c4 {[%clk 0:03:01.5]} 3... Nf6 {[%clk 0:02:55.4]} 4.
Nc3 {[%clk 0:03:01.8]} 4... dxc4 {[%clk 0:02:43.7]} 5. a4 {[%clk 0:03:01.4]}
5... Bf5 {[%clk 0:02:42.4]} 6. Nh4 {[%clk 0:03:01.8]} 6... Bg6 {[%clk
0:02:25.9]} 7. Nxg6 {[%clk 0:03:01.2]} 7... hxg6 {[%clk 0:02:26.8]} 8. e4 {[%clk
0:03:01.9]} 8... e5 {[%clk 0:02:21.8]} 9. Bxc4 {[%clk 0:03:00.2]} 9... exd4
{[%clk 0:02:16]} 10. Qb3 {[%clk 0:03:00.6]} 10... Qe7 {[%clk 0:02:02.4]} 11. Bg5
{[%clk 0:02:06.2]} 11... dxc3 {[%clk 0:01:52.2]} 12. O-O-O {[%clk 0:02:06.7]}
12... cxb2+ {[%clk 0:01:39]} 13. Kb1 {[%clk 0:02:05.3]} 13... Nbd7 {[%clk
0:01:25.3]} 14. e5 {[%clk 0:01:28.1]} 14... O-O-O {[%clk 0:00:41.2]} 15. exf6
{[%clk 0:01:28]} 15... gxf6 {[%clk 0:00:32.2]} 16. Bf4 {[%clk 0:00:35.5]} 16...
Qe4+ {[%clk 0:00:28.8]} 17. Ka2 {[%clk 0:00:27.4]} 17... Qxf4 {[%clk 0:00:27.4]}
18. Bxf7 {[%clk 0:00:21.6]} 18... Qb4 {[%clk 0:00:23.3]} 19. Qc2 {[%clk
0:00:18.2]} 19... Rh4 {[%clk 0:00:18.2]} 20. Rd3 {[%clk 0:00:14.3]} 20... Qxa4+
{[%clk 0:00:15.9]} 21. Qxa4 {[%clk 0:00:14.6]} 21... Rxa4+ {[%clk 0:00:16.7]}
22. Kxb2 {[%clk 0:00:15.5]} 22... Ne5 {[%clk 0:00:12.4]} 23. Be6+ {[%clk
0:00:15.5]} 23... Kc7 {[%clk 0:00:11.9]} 24. Rxd8 {[%clk 0:00:13.1]} 24... Kxd8
{[%clk 0:00:12.8]} 25. h4 {[%clk 0:00:13.8]} 25... Ke7 {[%clk 0:00:07.9]} 26.
Bb3 {[%clk 0:00:12.5]} 26... Rf4 {[%clk 0:00:07.5]} 27. f3 {[%clk 0:00:11.9]}
27... Bg7 {[%clk 0:00:06]} 28. h5 {[%clk 0:00:12.4]} 28... gxh5 {[%clk
0:00:05.8]} 29. Rxh5 {[%clk 0:00:13.3]} 29... Kf8 {[%clk 0:00:04.9]} 30. Rh1
{[%clk 0:00:13]} 30... Rd4 {[%clk 0:00:05.1]} 31. Ra1 {[%clk 0:00:12.5]} 31...
a6 {[%clk 0:00:04.9]} 32. f4 {[%clk 0:00:11.9]} 32... Rxf4 {[%clk 0:00:04.7]}
33. Rd1 {[%clk 0:00:12.6]} 33... Ke7 {[%clk 0:00:04.3]} 34. g3 {[%clk
0:00:12.2]} 34... Rf2+ {[%clk 0:00:04.1]} 35. Ka3 {[%clk 0:00:11.3]} 35... c5
{[%clk 0:00:04.9]} 36. Rh1 {[%clk 0:00:11.4]} 36... c4 {[%clk 0:00:05.2]} 37.
Ba2 {[%clk 0:00:10.5]} 37... b5 {[%clk 0:00:05.7]} 38. Rh7 {[%clk 0:00:10.4]}
38... Kf8 {[%clk 0:00:06]} 39. Bb1 {[%clk 0:00:09.5]} 39... Kg8 {[%clk
0:00:06.3]} 40. Be4 {[%clk 0:00:10]} 40... Bf8+ {[%clk 0:00:06.8]} 0-1

[Event "*** Titled Tuesday Blitz"]
[Site "Chess.com"]
[Date "2021.03.02"]
[Round "2"]
[White "Make_it_shine060"]
[Black "erdni1993"]
[Result "1-0"]
[WhiteElo "2256"]
[BlackElo "2431"]
[TimeControl "180+1"]
[EndTime "10:18:01 PST"]
[Termination "Make_it_shine060 won by checkmate"]

1. d4 {[%clk 0:03:00.9]} 1... Nf6 {[%clk 0:02:59.6]} 2. c4 {[%clk 0:03:00.7]}
2... e6 {[%clk 0:03:00.2]} 3. Nf3 {[%clk 0:03:00.1]} 3... c5 {[%clk 0:03:00.4]}
4. d5 {[%clk 0:02:58.9]} 4... exd5 {[%clk 0:03:00.3]} 5. cxd5 {[%clk 0:02:59.8]}
5... Bd6 {[%clk 0:03:00.4]} 6. Nc3 {[%clk 0:02:59.3]} 6... O-O {[%clk
0:03:00.3]} 7. e4 {[%clk 0:02:57.3]} 7... Re8 {[%clk 0:02:59]} 8. Bd3 {[%clk
0:02:55]} 8... h6 {[%clk 0:02:58.8]} 9. O-O {[%clk 0:02:54.6]} 9... Bc7 {[%clk
0:02:59]} 10. h3 {[%clk 0:02:40.2]} 10... d6 {[%clk 0:02:58.9]} 11. Be3 {[%clk
0:02:38.8]} 11... a6 {[%clk 0:02:59]} 12. a4 {[%clk 0:02:38]} 12... Nbd7 {[%clk
0:02:59.5]} 13. Qc2 {[%clk 0:02:35.6]} 13... Rb8 {[%clk 0:02:59.5]} 14. Nd2
{[%clk 0:02:26.6]} 14... Ne5 {[%clk 0:02:57.8]} 15. Be2 {[%clk 0:02:26.3]} 15...
Bd7 {[%clk 0:02:57.8]} 16. f4 {[%clk 0:02:25.7]} 16... Ng6 {[%clk 0:02:57.7]}
17. Bd3 {[%clk 0:02:03.7]} 17... b5 {[%clk 0:02:56.7]} 18. axb5 {[%clk
0:02:01.5]} 18... axb5 {[%clk 0:02:57.6]} 19. e5 {[%clk 0:01:59.7]} 19... dxe5
{[%clk 0:02:52.1]} 20. Bxg6 {[%clk 0:01:59.4]} 20... fxg6 {[%clk 0:02:51.5]} 21.
Qxg6 {[%clk 0:01:55.8]} 21... b4 {[%clk 0:02:35.9]} 22. Nce4 {[%clk 0:01:47.6]}
22... Nxe4 {[%clk 0:01:53.5]} 23. Nxe4 {[%clk 0:01:46.6]} 23... Rb6 {[%clk
0:01:42.7]} 24. d6 {[%clk 0:01:37.3]} 24... Bxd6 {[%clk 0:00:34.1]} 25. Nxd6
{[%clk 0:01:34.7]} 25... Re6 {[%clk 0:00:13.6]} 26. Qf7+ {[%clk 0:01:33.9]}
26... Kh7 {[%clk 0:00:13.8]} 27. fxe5 {[%clk 0:01:20.2]} 27... Rxe5 {[%clk
0:00:14]} 28. Bf4 {[%clk 0:01:17.9]} 28... Re6 {[%clk 0:00:11.6]} 29. Ra7 {[%clk
0:00:57.2]} 29... Re7 {[%clk 0:00:11]} 30. Qd5 {[%clk 0:00:54.7]} 30... Be6
{[%clk 0:00:10.4]} 31. Qd3+ {[%clk 0:00:52.6]} 31... Kg8 {[%clk 0:00:09.7]} 32.
Rxe7 {[%clk 0:00:51]} 32... Qxe7 {[%clk 0:00:10.6]} 33. Re1 {[%clk 0:00:46]}
33... Qf6 {[%clk 0:00:10.3]} 34. Be5 {[%clk 0:00:42.2]} 34... Qg5 {[%clk
0:00:10.5]} 35. Bh2 {[%clk 0:00:37.3]} 35... Bf7 {[%clk 0:00:09]} 36. Nxf7
{[%clk 0:00:36.3]} 36... Kxf7 {[%clk 0:00:09.9]} 37. Qd7+ {[%clk 0:00:35.2]}
37... Kg6 {[%clk 0:00:10.1]} 38. Qd3+ {[%clk 0:00:32.6]} 38... Kf7 {[%clk
0:00:09.8]} 39. Qf3+ {[%clk 0:00:23]} 39... Rf6 {[%clk 0:00:08.1]} 40. Qb7+
{[%clk 0:00:22.9]} 40... Kg6 {[%clk 0:00:08.5]} 41. Qe4+ {[%clk 0:00:20.5]}
41... Kf7 {[%clk 0:00:08.7]} 42. Qe8# {[%clk 0:00:20.4]} 1-0

[Event "*** Titled Tuesday Blitz"]
[Site "Chess.com"]
[Date "2021.03.02"]
[Round "2"]
[White "volunteers1998"]
[Black "Misticpikachu"]
[Result "0-1"]
[WhiteElo "2154"]
[BlackElo "2412"]
[TimeControl "180+1"]
[EndTime "10:18:01 PST"]
[Termination "Misticpikachu won on time"]

1. e4 {[%clk 0:03:00.9]} 1... c5 {[%clk 0:02:59.6]} 2. Nf3 {[%clk 0:02:59.6]}
2... Nc6 {[%clk 0:02:59]} 3. Bb5 {[%clk 0:02:57.9]} 3... e6 {[%clk 0:02:58.9]}
4. O-O {[%clk 0:02:54.6]} 4... Nge7 {[%clk 0:02:58.2]} 5. d4 {[%clk 0:02:50.5]}
5... cxd4 {[%clk 0:02:57.7]} 6. Nxd4 {[%clk 0:02:49.5]} 6... Qb6 {[%clk
0:02:54.6]} 7. Nxc6 {[%clk 0:02:45.9]} 7... bxc6 {[%clk 0:02:46]} 8. Be2 {[%clk
0:02:38.9]} 8... Ng6 {[%clk 0:02:45.3]} 9. Nc3 {[%clk 0:02:35.3]} 9... Be7
{[%clk 0:02:41.5]} 10. Re1 {[%clk 0:02:19.3]} 10... O-O {[%clk 0:02:40.3]} 11.
Rb1 {[%clk 0:02:14.4]} 11... d5 {[%clk 0:02:32.7]} 12. Be3 {[%clk 0:02:10.9]}
12... Qc7 {[%clk 0:02:30.4]} 13. Qd2 {[%clk 0:01:22.8]} 13... Rd8 {[%clk
0:02:20.4]} 14. exd5 {[%clk 0:01:15.4]} 14... cxd5 {[%clk 0:02:17.7]} 15. Nb5
{[%clk 0:01:09.4]} 15... Qc6 {[%clk 0:02:07.8]} 16. Nd4 {[%clk 0:01:07]} 16...
Qc7 {[%clk 0:01:58.1]} 17. Nb5 {[%clk 0:01:04.1]} 17... Qb8 {[%clk 0:01:54.2]}
18. Bd3 {[%clk 0:00:53.6]} 18... Ba6 {[%clk 0:01:50]} 19. a4 {[%clk 0:00:48.4]}
19... Bf6 {[%clk 0:01:38.7]} 20. c3 {[%clk 0:00:39.1]} 20... Ne5 {[%clk
0:01:37]} 21. Bf4 {[%clk 0:00:34.5]} 21... Nc4 {[%clk 0:01:07.6]} 22. Bxb8
{[%clk 0:00:21.3]} 22... Nxd2 {[%clk 0:01:07.2]} 23. Bc7 {[%clk 0:00:16.6]}
23... Rdc8 {[%clk 0:00:54]} 24. Rbd1 {[%clk 0:00:12.3]} 24... Nb3 {[%clk
0:00:44.3]} 25. Bg3 {[%clk 0:00:10]} 25... Nc5 {[%clk 0:00:44.3]} 26. Bb1 {[%clk
0:00:06.4]} 26... Nxa4 {[%clk 0:00:40.7]} 27. Nd4 {[%clk 0:00:04.2]} 27... Nxb2
{[%clk 0:00:38.6]} 28. Rd2 {[%clk 0:00:02.4]} 28... Nc4 {[%clk 0:00:38.6]} 29.
Ra2 {[%clk 0:00:02.3]} 29... Bb7 {[%clk 0:00:35.1]} 30. Bd3 {[%clk 0:00:01.4]}
30... Nb6 {[%clk 0:00:33.2]} 31. Bc4 {[%clk 0:00:01.9]} 31... Rc5 {[%clk
0:00:23.2]} 32. Nb5 {[%clk 0:00:02.4]} 32... Nxc4 {[%clk 0:00:20.5]} 33. Rxa7
{[%clk 0:00:02]} 33... Rxa7 {[%clk 0:00:20.6]} 34. Nxa7 {[%clk 0:00:01.5]} 34...
h6 {[%clk 0:00:20.6]} 35. Rb1 {[%clk 0:00:01.7]} 35... Ba6 {[%clk 0:00:17.4]}
36. Rb7 {[%clk 0:00:02.3]} 36... Bxb7 {[%clk 0:00:10.9]} 37. h4 {[%clk
0:00:02.8]} 37... Ra5 {[%clk 0:00:10]} 38. Bc7 {[%clk 0:00:02]} 38... Rxa7
{[%clk 0:00:10]} 39. Kh2 {[%clk 0:00:01.2]} 39... Be7 {[%clk 0:00:09.4]} 40. Bf4
{[%clk 0:00:01.1]} 40... Bd6 {[%clk 0:00:10.3]} 0-1

[Event "*** Titled Tuesday Blitz"]
[Site "Chess.com"]
[Date "2021.03.02"]
[Round "2"]
[White "Vandros57"]
[Black "Vasily85"]
[Result "0-1"]
[WhiteElo "2243"]
[BlackElo "2457"]
[TimeControl "180+1"]
[EndTime "10:18:02 PST"]
[Termination "Vasily85 won on time"]

1. d4 {[%clk 0:03:00.9]} 1... Nf6 {[%clk 0:02:59.5]} 2. Nf3 {[%clk 0:02:59.8]}
2... e6 {[%clk 0:02:58.9]} 3. c4 {[%clk 0:02:59.1]} 3... b6 {[%clk 0:02:58.3]}
4. e3 {[%clk 0:02:56.6]} 4... Bb7 {[%clk 0:02:58.1]} 5. a3 {[%clk 0:02:55.9]}
5... c5 {[%clk 0:02:54.3]} 6. Nc3 {[%clk 0:02:55.4]} 6... cxd4 {[%clk
0:02:51.2]} 7. exd4 {[%clk 0:02:54.5]} 7... d5 {[%clk 0:02:51.3]} 8. Bg5 {[%clk
0:02:51.9]} 8... Be7 {[%clk 0:02:48.9]} 9. Bd3 {[%clk 0:02:50.6]} 9... dxc4
{[%clk 0:02:45.9]} 10. Bxc4 {[%clk 0:02:49.9]} 10... O-O {[%clk 0:02:41.7]} 11.
O-O {[%clk 0:02:49.2]} 11... Nc6 {[%clk 0:02:39.5]} 12. Be3 {[%clk 0:02:34.4]}
12... Rc8 {[%clk 0:02:37.7]} 13. Ba2 {[%clk 0:02:32.2]} 13... Na5 {[%clk
0:02:15.7]} 14. Qe2 {[%clk 0:02:30]} 14... Nd5 {[%clk 0:02:02.3]} 15. Rac1
{[%clk 0:02:21.3]} 15... Nxc3 {[%clk 0:01:58.3]} 16. Rxc3 {[%clk 0:02:16.7]}
16... Rxc3 {[%clk 0:01:54.8]} 17. bxc3 {[%clk 0:02:15.7]} 17... Bxa3 {[%clk
0:01:50.4]} 18. Ne5 {[%clk 0:02:08.8]} 18... Qc7 {[%clk 0:01:40.9]} 19. Bd2
{[%clk 0:01:57.6]} 19... Bd6 {[%clk 0:01:25.9]} 20. f4 {[%clk 0:01:53.8]} 20...
Bd5 {[%clk 0:01:06.4]} 21. Bb1 {[%clk 0:01:49.6]} 21... Nc4 {[%clk 0:00:56.9]}
22. Rc1 {[%clk 0:01:30.1]} 22... a5 {[%clk 0:00:42.9]} 23. Bd3 {[%clk
0:01:28.3]} 23... Nxd2 {[%clk 0:00:31.9]} 24. Qxd2 {[%clk 0:01:27.8]} 24... Bxe5
{[%clk 0:00:26.7]} 25. fxe5 {[%clk 0:01:23.2]} 25... Bc4 {[%clk 0:00:26.7]} 26.
Rf1 {[%clk 0:01:14.6]} 26... a4 {[%clk 0:00:24.2]} 27. Rf3 {[%clk 0:01:09.1]}
27... a3 {[%clk 0:00:23.4]} 28. Bxh7+ {[%clk 0:01:06.9]} 28... Kxh7 {[%clk
0:00:21.3]} 29. Rh3+ {[%clk 0:00:57.9]} 29... Kg8 {[%clk 0:00:21.3]} 30. Qc2
{[%clk 0:00:52.8]} 30... g6 {[%clk 0:00:15.6]} 31. Qc1 {[%clk 0:00:33.5]} 31...
a2 {[%clk 0:00:13.5]} 32. Qh6 {[%clk 0:00:32.9]} 32... a1=Q+ {[%clk 0:00:13.3]}
33. Kf2 {[%clk 0:00:32.7]} 33... Qf1+ {[%clk 0:00:11.4]} 34. Kg3 {[%clk
0:00:31.8]} 34... Qe1+ {[%clk 0:00:11.9]} 35. Kg4 {[%clk 0:00:25.6]} 35... Be2+
{[%clk 0:00:11.9]} 36. Kf4 {[%clk 0:00:15.2]} 36... Qc1+ {[%clk 0:00:11.8]} 37.
Re3 {[%clk 0:00:14.4]} 37... Q7xc3 {[%clk 0:00:08.3]} 0-1

[Event "*** Titled Tuesday Blitz"]
[Site "Chess.com"]
[Date "2021.03.02"]
[Round "2"]
[White "Lion-Al-Messi"]
[Black "salomez"]
[Result "1-0"]
[WhiteElo "2428"]
[BlackElo "2214"]
[TimeControl "180+1"]
[EndTime "10:18:02 PST"]
[Termination "Lion-Al-Messi won on time"]

1. e4 {[%clk 0:03:00.3]} 1... c5 {[%clk 0:02:59.8]} 2. Nf3 {[%clk 0:03:00.6]}
2... e6 {[%clk 0:03:00.4]} 3. d4 {[%clk 0:03:00.9]} 3... cxd4 {[%clk 0:03:01.3]}
4. Nxd4 {[%clk 0:03:01.8]} 4... Nf6 {[%clk 0:03:02]} 5. Nc3 {[%clk 0:03:02.4]}
5... Nc6 {[%clk 0:03:02.2]} 6. Nxc6 {[%clk 0:03:01.9]} 6... bxc6 {[%clk
0:03:01.6]} 7. e5 {[%clk 0:03:02.4]} 7... Nd5 {[%clk 0:03:00.2]} 8. Ne4 {[%clk
0:03:01.4]} 8... Qc7 {[%clk 0:02:59]} 9. f4 {[%clk 0:03:01.6]} 9... Qb6 {[%clk
0:02:58.9]} 10. c4 {[%clk 0:03:01.9]} 10... Bb4+ {[%clk 0:02:57.9]} 11. Ke2
{[%clk 0:03:02.1]} 11... Ba6 {[%clk 0:02:58]} 12. Kf3 {[%clk 0:02:57.8]} 12...
f5 {[%clk 0:02:57.8]} 13. Nd6+ {[%clk 0:02:48.9]} 13... Bxd6 {[%clk 0:02:56.3]}
14. cxd5 {[%clk 0:02:38.3]} 14... Bc5 {[%clk 0:02:47.9]} 15. d6 {[%clk
0:02:24.9]} 15... Bxf1 {[%clk 0:02:40.3]} 16. Rxf1 {[%clk 0:02:23.4]} 16... O-O
{[%clk 0:02:37.8]} 17. g3 {[%clk 0:02:16.1]} 17... Bd4 {[%clk 0:02:37.9]} 18.
Qe2 {[%clk 0:02:14.2]} 18... Rab8 {[%clk 0:02:37]} 19. Kg2 {[%clk 0:02:12.3]}
19... c5 {[%clk 0:02:32.2]} 20. Rb1 {[%clk 0:02:09.6]} 20... Qa5 {[%clk
0:02:04.7]} 21. b3 {[%clk 0:02:03.2]} 21... c4 {[%clk 0:01:53.2]} 22. Rd1 {[%clk
0:01:32.6]} 22... Qb6 {[%clk 0:00:57.8]} 23. Re1 {[%clk 0:00:44.5]} 23... Rfc8
{[%clk 0:00:47]} 24. Be3 {[%clk 0:00:43.9]} 24... Bxe3 {[%clk 0:00:41]} 25. Qxe3
{[%clk 0:00:43.1]} 25... cxb3 {[%clk 0:00:36.7]} 26. Qxb6 {[%clk 0:00:37.9]}
26... Rxb6 {[%clk 0:00:33.7]} 27. Rxb3 {[%clk 0:00:23]} 27... Rc2+ {[%clk
0:00:33.1]} 28. Kh3 {[%clk 0:00:19.8]} 28... Ra6 {[%clk 0:00:18.7]} 29. a3
{[%clk 0:00:18.7]} 29... Rb6 {[%clk 0:00:05.1]} 30. Reb1 {[%clk 0:00:17.6]}
30... Rxb3 {[%clk 0:00:04.3]} 31. Rxb3 {[%clk 0:00:18.5]} 31... Kf7 {[%clk
0:00:04.2]} 32. Rb7 {[%clk 0:00:17.4]} 32... Ke8 {[%clk 0:00:04.2]} 33. Rb8+
{[%clk 0:00:17.5]} 33... Kf7 {[%clk 0:00:03.8]} 34. Rd8 {[%clk 0:00:17.6]} 34...
Ra2 {[%clk 0:00:01.7]} 35. Rxd7+ {[%clk 0:00:17.4]} 35... Kg6 {[%clk 0:00:02.1]}
36. Rxa7 {[%clk 0:00:16]} 36... h6 {[%clk 0:00:01.5]} 37. d7 {[%clk 0:00:15.2]}
37... Rd2 {[%clk 0:00:01.1]} 38. Rc7 {[%clk 0:00:11.6]} 1-0